fUSD/lending_fUSD_20250326
["ID","MTS","AMOUNT","RATE_DAILY","PERIOD"]
[356691882,1742971840503,-500.0,0.00031256,7]
[356691883,1742971840510,-500.0,0.00031256,7]
[356691884,1742971840615,-500.0,0.00031256,7]
[356691885,1742971840630,-500.0,0.00031256,7]
[356691887,1742971840640,-500.0,0.00031256,7]
[356691889,1742971840650,-500.0,0.00031256,7]
[356691890,1742971840659,-179.61,0.00031256,7]
[356691891,1742971840668,-286.83056886,0.00031342,2]
[356691892,1742971840677,-300.0,0.00031365,2]
[356691893,1742971840686,-168.04,0.00031371,2]
[356691894,1742971840695,-286.83056886,0.00031452,2]
[356691895,1742971840704,-200.0,0.00031521,2]
[356691896,1742971840714,-151.47624096,0.00031562,30]
[356691897,1742971840723,-286.83056886,0.00031589,30]
[356691898,1742971840732,-650.852,0.00031657,2]
[356691899,1742971840741,-1282.0,0.00031657,2]
[356691900,1742971840750,-152.834,0.00031657,2]
[356691901,1742971840759,-2063.781,0.00031657,2]
[356691902,1742971840769,-1486.926,0.00031657,2]
[356691903,1742971840778,-691.157,0.00031657,2]
[356691904,1742971840787,-788.0,0.00031657,2]
[356691905,1742971840796,-1273.0,0.00031657,2]
[356691906,1742971840806,-1463.38,0.00031657,2]
[356691907,1742971840815,-542.0,0.00031657,2]
[356691908,1742971840824,-4087.0,0.00031657,2]
[356691909,1742971840833,-907.0,0.00031657,2]
[356691910,1742971840842,-214.65,0.00031657,2]
[356691911,1742971840852,-1015.0,0.00031657,2]
[356691912,1742971840861,-3943.0,0.00031657,2]
[356691913,1742971840871,-250.0,0.00031657,2]
[356691914,1742971840881,-200.0,0.00031694,2]
[356691915,1742971840891,-286.83056886,0.00031699,30]
[356691916,1742971840901,-786.0,0.000318,2]
[356691917,1742971840910,-286.83056886,0.00031836,30]
[356691918,1742971840919,-200.0,0.00031836,2]
[356691919,1742971840929,-151.47624096,0.0003189,30]
[356691920,1742971840938,-10006.38294257,0.0003194,2]
[356691921,1742971840947,-234.58,0.00031969,2]
[356691922,1742971840956,-286.83056886,0.00031973,30]
[356691923,1742971840966,-2000.0,0.00032,30]
[356691924,1742971840975,-152.324337,0.00032,7]
[356691925,1742971840984,-151.055202,0.00032,7]
[356691926,1742971840993,-195.416175,0.00032,7]
[356691927,1742971841003,-193.529066,0.00032,7]
[356691928,1742971841012,-155.0,0.00032,2]
[356691929,1742971841022,-286.83056886,0.00032082,30]
[356691930,1742971841032,-200.0,0.00032155,2]
[356691931,1742971841043,-752.0,0.000322,2]
[356691932,1742971841053,-234.0,0.000322,2]
[356691933,1742971841063,-984.8,0.000322,2]
[356691934,1742971841073,-151.0,0.00032209,7]
[356691935,1742971841082,-160.004272,0.00032209,7]
[356691936,1742971841091,-151.0,0.00032209,7]
[356691937,1742971841101,-152.196914,0.00032209,7]
[356691938,1742971841110,-151.0,0.00032209,7]
[356691939,1742971841120,-176.647934,0.00032209,7]
[356691940,1742971841130,-226.781143,0.00032209,7]
[356691941,1742971841141,-226.781143,0.00032209,7]
[356691942,1742971841151,-151.0,0.00032209,7]
[356691943,1742971841160,-151.0,0.00032209,7]
[356691944,1742971841169,-21569.7276993,0.00032209,2]
[356691945,1742971841179,-16662.6609813,0.00032209,2]
[356691946,1742971841188,-286.83056886,0.00032219,30]
[356691947,1742971841197,-150.65,0.00032237,2]
[356691948,1742971841207,-15065.07250916,0.00032245,7]
[356691949,1742971841216,-1000.0,0.00032247,30]
[356691950,1742971841225,-1000.0,0.00032247,30]
[356691951,1742971841234,-1000.0,0.00032247,30]
[356691952,1742971841244,-1000.0,0.00032247,30]
[356691953,1742971841253,-1000.0,0.00032247,30]
[356691954,1742971841262,-1000.0,0.00032247,30]
[356691955,1742971841271,-1000.0,0.00032247,30]
[356691956,1742971841280,-1000.0,0.00032247,30]
[356691957,1742971841290,-1000.0,0.00032247,30]
[356691958,1742971841299,-500.0,0.00032248,30]
[356691959,1742971841308,-200.0,0.00032252,2]
[356691960,1742971841317,-200.0,0.00032252,2]
[356691961,1742971841326,-200.0,0.00032252,2]
[356691962,1742971841336,-165.38,0.00032269,2]
[356691963,1742971841345,-296.0681,0.000323,2]
[356691964,1742971841354,-544.06,0.00032312,120]
[356691965,1742971841363,-286.83056886,0.00032329,30]
[356691966,1742971841372,-1387.72,0.00032374,2]
[356691967,1742971841382,-3726.16591543,0.0003243,2]
[356691968,1742971841392,-286.83056886,0.00032466,30]
[356691969,1742971841402,-200.0,0.00032575,2]
[356691970,1742971841411,-200.0,0.00032575,2]
[356691971,1742971841420,-200.0,0.00032575,2]
[356691972,1742971841430,-10948.11666679,0.00032589,2]
[356691973,1742971841440,-286.83056886,0.00032603,30]
[356691974,1742971841449,-300.0,0.00032735,2]
[356691975,1742971841459,-1718.0,0.00032746,5]
[356691976,1742971841468,-191.86,0.00032746,2]
[356691977,1742971841478,-311.42317435,0.00032809,2]
[356691978,1742971841488,-16662.6609813,0.00032884,2]
[356691979,1742971841498,-21569.7276993,0.00032894,2]
[356691980,1742971841509,-200.0,0.000329,2]
[356691981,1742971841519,-200.0,0.000329,2]
[356691982,1742971841530,-3100.0,0.000329,12]
[356691983,1742971841540,-200.0,0.000329,2]
[356691984,1742971841552,-161.83175448,0.00033157,2]
[356691985,1742971841561,-200.0,0.00033229,2]
[356691986,1742971841571,-200.0,0.00033229,2]
[356691987,1742971841581,-153.267123,0.00033233,7]
[356691988,1742971841590,-1000.0,0.00033321,2]
[356691989,1742971841599,-234.58,0.00033422,2]
[356691990,1742971841608,-200.0,0.00033562,2]
[356691991,1742971841617,-165.38,0.00033639,2]
[356691992,1742971841626,-205.0,0.0003379,2]
[356691993,1742971841635,-150.0,0.00034062,2]
[356691994,1742971841644,-153.422,0.00034063,2]
[356691995,1742971841654,-3726.16591543,0.0003422,2]
[356691996,1742971841664,-151.0,0.00034344,7]
[356691997,1742971841673,-10948.11666679,0.00034378,2]
[356691998,1742971841685,-150.0,0.00034548,10]
[356691999,1742971841694,-502.33359425,0.0003459,5]
[356692000,1742971841705,-150.08984021,0.00034594,120]
[356692001,1742971841715,-150.65,0.00034628,2]
[356692002,1742971841725,-16662.6609813,0.00034637,2]
[356692003,1742971841735,-1387.72,0.00034638,2]
[356692004,1742971841745,-21569.7276993,0.00034647,2]
[356692005,1742971841755,-16662.6609813,0.00034647,2]
[356692006,1742971841764,-151.0,0.00034647,7]
[356692007,1742971841773,-226.781143,0.00034647,7]
[356692008,1742971841782,-226.781143,0.00034647,7]
[356692009,1742971841792,-642.0,0.00034657,2]
[356692010,1742971841801,-1282.0,0.00034657,2]
[356692011,1742971841810,-2037.0,0.00034657,2]
[356692012,1742971841819,-1421.0,0.00034657,2]
[356692013,1742971841829,-572.0,0.00034657,2]
[356692014,1742971841838,-788.0,0.00034657,2]
[356692015,1742971841847,-1273.0,0.00034657,2]
[356692016,1742971841856,-1431.0,0.00034657,2]
[356692017,1742971841866,-542.0,0.00034657,2]
[356692018,1742971841878,-4087.0,0.00034657,2]
[356692019,1742971841888,-907.0,0.00034657,2]
[356692020,1742971841897,-151.0,0.00034657,2]
[356692021,1742971841907,-1015.0,0.00034657,2]
[356692022,1742971841916,-3943.0,0.00034657,2]
[356692023,1742971841926,-150.0,0.00034657,2]
[356692024,1742971841935,-151.0,0.00034657,7]
[356692025,1742971841945,-311.42317435,0.00034818,2]
[356692026,1742971841955,-234.58,0.00034875,2]
[356692027,1742971841964,-861.44560268,0.00035,2]
[356692028,1742971841974,-257.30147589,0.00035,30]
[356692029,1742971841984,-165.38,0.00035009,2]
[356692030,1742971841993,-191.86,0.00035243,2]
[356692031,1742971842003,-477.60064491,0.00035245,30]
[356692032,1742971842012,-500.89817549,0.00035245,30]
[356692033,1742971842022,-544.06,0.00035249,120]
[356692034,1742971842032,-7126.19386816,0.00035261,120]
[356692035,1742971842042,-205.0,0.0003527,2]
[356692036,1742971842054,-159.22,0.00035321,2]
[356692037,1742971842064,-161.83175448,0.00035614,2]
[356692038,1742971842074,-150.56,0.00035616,2]
[356692039,1742971842083,-448.41230204,0.0003586,5]
[356692040,1742971842095,-656.35853,0.000359,47]
[356692041,1742971842105,-1499.38477036,0.0003601,2]
[356692064,1742971846396,-815.052,0.00031657,2]
[356692065,1742971846408,-300.948,0.00031657,2]
[356692066,1742971846418,-77.9214,0.00032209,7]
[356692067,1742971846446,-137.434612,0.00032209,7]
[356692068,1742971846455,-154.009994,0.00032209,7]
[356692069,1742971846464,-215.356012,0.00033321,7]
[356692070,1742971846474,-1116.0,0.00034657,2]
[356692071,1742971846573,-14.78065668,0.0003601,2]
[356692072,1742971846586,-1130.07324647,0.0003601,2]
[356692073,1742971846599,-1081.92724192,0.0003601,2]
[356692074,1742971846609,-215.356012,0.0003601,7]
[356692075,1742971846619,-2327.8693508,0.00036167,2]
[356692076,1742971846630,-465.37999921,0.00036167,2]
[356692077,1742971846645,-1224.46167943,0.00036167,2]
[356692078,1742971846658,-3088.4339,0.00036167,2]
[356692079,1742971846670,-3841.97173735,0.00036167,2]
[356692080,1742971846679,-152.47,0.0003624,2]
[356692081,1742971846689,-346.02,0.0003624,2]
[356692082,1742971846698,-222.24,0.0003624,2]
[356692083,1742971846707,-396.48832709,0.00036252,5]
[356692084,1742971846717,-165.38,0.00036379,2]
[356692085,1742971846726,-152.0,0.00036703,3]
[356692086,1742971846736,-205.0,0.0003675,2]
[356692087,1742971846745,-311.42317435,0.00036827,2]
[356692088,1742971846755,-155.34,0.00036862,2]
[356692089,1742971846764,-16662.6609813,0.00036882,3]
[356692090,1742971846773,-150.65,0.00036882,2]
[356692091,1742971846782,-150.56,0.00036888,2]
[356692092,1742971846791,-20109.1096602,0.00036892,3]
[356692093,1742971846806,-639.22380711,0.00036892,3]
[356692094,1742971846830,-821.39423199,0.00036892,3]
[356692095,1742971846839,-1387.72,0.00036902,2]
[356692096,1742971846848,-151.0,0.00036902,7]
[356692097,1742971846858,-1000.0,0.00037024,2]
[356692098,1742971846867,-151.0,0.00037308,7]
[356692099,1742971846876,-226.781143,0.00037308,7]
[356692100,1742971846885,-226.781143,0.00037308,7]
[356692101,1742971846894,-16662.6609813,0.00037308,3]
[356692102,1742971846904,-6220.29681281,0.00037318,2]
[356692103,1742971846920,-11618.66101612,0.00037318,2]
[356692104,1742971846932,-3178.73708978,0.00037318,2]
[356692105,1742971846941,-152.625667,0.00037318,7]
[356692106,1742971846950,-646.39591584,0.00037557,2]
[356692107,1742971846959,-151.0,0.00037636,7]
[356692108,1742971846968,-215.356012,0.00037636,7]
[356692109,1742971846977,-21569.7276993,0.00037637,3]
[356692110,1742971846986,-10110.17433645,0.00037647,3]
[356692111,1742972228936,499.99,0.00032245,120]
[356692112,1742972612944,444.21822752,0.00032246,120]
[356692113,1742972803608,499.99,0.00032246,120]
[356692121,1742972908699,2449.66581633,0.00032246,31]
[356692133,1742973032292,-250.0,0.00025,2]
[356692134,1742973032302,-145.9991849,0.00025925,3]
[356692142,1742973038171,-204.0008151,0.00025925,3]
[356692143,1742973038180,-159.57,0.00026849,2]
[356692144,1742973038192,-300.0,0.00027,2]
[356692145,1742973038201,-350.0,0.0002717,3]
[356692146,1742973038213,-350.0,0.000275,3]
[356692147,1742973038223,-350.0,0.00029,2]
[356692148,1742973038232,-150.0,0.00029534,2]
[356692149,1742973038241,-500.0,0.000307,2]
[356692150,1742973038251,-400.0,0.00031,2]
[356692151,1742973038260,-294.31,0.00031256,7]
[356692152,1742973038269,-500.0,0.00031256,7]
[356692153,1742973038278,-381.1191849,0.00031426,2]
[356692154,1742973038311,-2220.6108151,0.00031426,2]
[356692155,1742973038320,-466.3942,0.00031599,7]
[356692156,1742973038329,-235.0,0.00031657,2]
[356692157,1742973038339,-159.29,0.000321,2]
[356692158,1742973038349,-400.0,0.000321,2]
[356692159,1742973038358,-6625.53208585,0.00032101,2]
[356692160,1742973038368,-827.547,0.0003211,31]
[356692161,1742973038377,-223.6836,0.00032222,2]
[356692162,1742973038387,-314.4977,0.00032222,2]
[356692163,1742973038397,-369.1692,0.00032222,2]
[356692164,1742973038406,-412.945,0.00032222,2]
[356692165,1742973038416,-168.8219,0.00032222,2]
[356692166,1742973038430,-798.0,0.00032321,2]
[356692167,1742973038440,-165.778,0.00032322,2]
[356692169,1742973038449,-150.0,0.00032322,2]
[356692171,1742973038458,-163.359,0.00032322,2]
[356692173,1742973038468,-214.566,0.00032322,2]
[356692175,1742973038477,-150.47,0.00032322,2]
[356692177,1742973038487,-298.424,0.00032322,2]
[356692179,1742973038496,-150.27,0.00032322,2]
[356692181,1742973038506,-181.08,0.00032322,2]
[356692183,1742973038515,-171.381,0.00032322,2]
[356692185,1742973038525,-176.237,0.00032322,2]
[356692187,1742973038534,-1282.0,0.00032322,2]
[356692189,1742973038544,-2037.0,0.00032322,2]
[356692191,1742973038553,-572.0,0.00032322,2]
[356692192,1742973038563,-1421.0,0.00032322,2]
[356692193,1742973038572,-788.0,0.00032322,2]
[356692194,1742973038581,-1273.0,0.00032322,2]
[356692195,1742973038591,-907.0,0.00032322,2]
[356692196,1742973038600,-1431.0,0.00032322,2]
[356692197,1742973038609,-542.0,0.00032322,2]
[356692198,1742973038618,-4087.0,0.00032322,2]
[356692199,1742973038628,-2778.26580253,0.00032322,2]
[356692200,1742973038640,-1164.73419747,0.00032322,2]
[356692201,1742973038649,-151.0,0.00032322,2]
[356692203,1742973038659,-1015.0,0.00032322,2]
[356692205,1742973038670,-368.18168405,0.000329,6]
[356692206,1742973038679,-1179.56,0.00032921,2]
[356692207,1742973038689,-450.0,0.00033,2]
[356692208,1742973038699,-200.0,0.000339,10]
[356692210,1742973038708,-583.48167622,0.00033973,5]
[356692212,1742973038717,-500.0,0.00033973,2]
[356692213,1742973038727,-752.0,0.000342,2]
[356692214,1742973038736,-234.0,0.000342,2]
[356692215,1742973038745,-984.8,0.000342,2]
[356692216,1742973038754,-634.17,0.00034412,2]
[356692217,1742973038763,-1000.0,0.00034441,2]
[356692218,1742973038772,-560.0,0.00034522,2]
[356692219,1742973038781,-164.35,0.00034762,2]
[356692220,1742973038790,-163.81,0.00034888,2]
[356692221,1742973038799,-190.38,0.00034907,2]
[356692222,1742973038809,-164.35,0.00034916,2]
[356692223,1742973038818,-170.79,0.00034939,120]
[356692224,1742973038827,-250.0,0.00034957,2]
[356692225,1742973038836,-244.84,0.00034957,2]
[356692226,1742973038846,-156.38,0.00035022,2]
[356692227,1742973038856,-164.35,0.00035071,2]
[356692228,1742973038865,-1179.56,0.00035184,2]
[356692229,1742973038875,-23900.0,0.00035214,2]
[356692230,1742973038884,-164.35,0.00035225,2]
[356692231,1742973038893,-477.60064491,0.00035246,30]
[356692232,1742973038902,-500.89817549,0.00035246,30]
[356692233,1742973038911,-150.0,0.00035322,2]
[356692234,1742973038923,-150.0,0.00035322,2]
[356692235,1742973038931,-150.0,0.00035322,2]
[356692236,1742973038941,-1282.0,0.00035322,2]
[356692237,1742973038950,-2037.0,0.00035322,2]
[356692238,1742973039074,-572.0,0.00035322,2]
[356692239,1742973039084,-1421.0,0.00035322,2]
[356692240,1742973039093,-788.0,0.00035322,2]
[356692241,1742973039103,-1273.0,0.00035322,2]
[356692242,1742973039112,-907.0,0.00035322,2]
[356692243,1742973039122,-1431.0,0.00035322,2]
[356692244,1742973039132,-542.0,0.00035322,2]
[356692245,1742973039141,-4087.0,0.00035322,2]
[356692246,1742973039151,-3943.0,0.00035322,2]
[356692247,1742973039161,-151.0,0.00035322,2]
[356692248,1742973039171,-1015.0,0.00035322,2]
[356692249,1742973039181,-164.35,0.0003538,2]
[356692250,1742973039191,-164.35,0.00035534,2]
[356692251,1742973039200,-150.56,0.00035616,2]
[356692252,1742973039212,-164.35,0.00035689,2]
[356692253,1742973039221,-164.35,0.00035843,2]
[356692254,1742973039230,-164.35,0.00035998,2]
[356692255,1742973039239,-159.57,0.00036027,2]
[356692256,1742973039249,-164.35,0.00036152,2]
[356692257,1742973039259,-191.86,0.00036365,2]
[356692258,1742973039267,-1218.5544451,0.0003643,4]
[356692259,1742973039278,-186.33,0.00036496,120]
[356692260,1742973039287,-1500.0,0.00036763,60]
[356692261,1742973039297,-354.34,0.0003679,2]
[356692262,1742973039306,-256.03,0.0003679,2]
[356692263,1742973039316,-150.56,0.00036986,2]
[356692264,1742973039330,-500.0,0.00037041,2]
[356692265,1742973039340,-898.58,0.00037064,2]
[356692266,1742973039350,-304.67,0.00037064,2]
[356692267,1742973039360,-308.82,0.00037064,2]
[356692268,1742973039369,-304.06,0.00037064,2]
[356692269,1742973039379,-546.96543,0.0003718,60]
[356692270,1742973039388,-1179.56,0.00037448,2]
[356692271,1742973039397,-2000.0,0.000375,30]
[356692272,1742973039407,-296.0681,0.000376,2]
[356692273,1742973039416,-200.0,0.00037647,2]
[356692274,1742973039425,-200.0,0.00037647,2]
[356692275,1742973039435,-200.0,0.00037647,2]
[356692276,1742973039444,-150.0,0.00037657,2]
[356692277,1742973039454,-551.41982698,0.00037697,2]
[356692278,1742973039478,-4874.65008682,0.00037697,2]
[356692279,1742973039487,-3010.3152474,0.00037697,2]
[356692280,1742973039496,-150.0,0.00037973,2]
[356692281,1742973039505,-150.0,0.00037973,2]
[356692282,1742973039514,-150.0,0.00037973,2]
[356692283,1742973039524,-150.0,0.00037973,2]
[356692284,1742973039533,-444.21822752,0.00038,120]
[356692285,1742973039542,-200.0,0.00038023,2]
[356692286,1742973039551,-200.0,0.00038023,2]
[356692287,1742973039561,-200.0,0.00038023,2]
[356692288,1742973039570,-3130.87120938,0.00038122,2]
[356692289,1742973039579,-623.64789882,0.00038122,45]
[356692290,1742973039588,-152.0,0.00038143,4]
[356692291,1742973039597,-40000.0,0.00038188,10]
[356692292,1742973039607,-74252.0,0.0003819,15]
[356692293,1742973039617,-1000.0,0.00038222,2]
[356692294,1742973039626,-2500.0,0.00038222,2]
[356692295,1742973039636,-205.0,0.0003823,2]
[356692296,1742973039645,-150.0,0.00038322,2]
[356692297,1742973039654,-150.0,0.00038322,2]
[356692298,1742973039663,-1056.101,0.00038322,2]
[356692299,1742973039673,-2037.0,0.00038322,2]
[356692300,1742973039682,-1421.0,0.00038322,2]
[356692301,1742973039691,-788.0,0.00038322,2]
[356692302,1742973039700,-1273.0,0.00038322,2]
[356692303,1742973039709,-907.0,0.00038322,2]
[356692304,1742973039718,-1431.0,0.00038322,2]
[356692305,1742973039727,-336.643,0.00038322,2]
[356692306,1742973039736,-3087.23352131,0.00038322,2]
[356692309,1742973040403,-155.0,0.00033,2]
[356692310,1742973040414,-350.15839784,0.00038322,2]
[356692311,1742973040627,-649.60808085,0.00038322,2]
[356692312,1742973040637,-1106.07767568,0.00038322,2]
[356692313,1742973040742,-2836.92232432,0.00038322,2]
[356692314,1742973040752,-151.0,0.00038322,2]
[356692315,1742973040761,-1015.0,0.00038322,2]
[356692316,1742973040771,-6009.9354,0.00038339,2]
[356692317,1742973040780,-1000.0,0.00038339,2]
[356692318,1742973040789,-16.84592092,0.00038356,2]
[356692319,1742973040800,-133.71407908,0.00038356,2]
[356692320,1742973040810,-200.0,0.00038404,2]
[356692321,1742973040820,-200.0,0.00038404,2]
[356692322,1742973040829,-200.0,0.00038404,2]
[356692323,1742973040839,-20000.0,0.00038459,2]
[356692324,1742973040848,-156.38,0.00038524,2]
[356692325,1742973040857,-200.0,0.00038556,120]
[356692326,1742973040866,-150.0,0.0003864,2]
[356692327,1742973040876,-150.0,0.00038651,2]
[356692329,1742973040885,-150.0,0.00038659,2]
[356692331,1742973040895,-150.0,0.0003866,2]
[356692333,1742973040904,-150.0,0.00038663,2]
[356692335,1742973040914,-150.0,0.00038663,2]
[356692337,1742973040924,-150.0,0.00038669,2]
[356692339,1742973040933,-150.0,0.00038673,2]
[356692341,1742973040942,-150.0,0.00038673,2]
[356692343,1742973040952,-150.0,0.00038675,2]
[356692345,1742973040961,-150.0,0.00038683,2]
[356692347,1742973040970,-150.0,0.00038689,2]
[356692349,1742973040979,-150.0,0.00038695,2]
[356692351,1742973040988,-150.0,0.00038698,2]
[356692353,1742973040997,-152.48074373,0.00038699,7]
[356692355,1742973041007,-150.0,0.00038699,2]
[356692357,1742973041015,-150.0,0.00038701,2]
[356692359,1742973041025,-150.0,0.00038702,2]
[356692362,1742973041034,-150.0,0.00038704,2]
[356692365,1742973041043,-150.0,0.0003871,2]
[356692368,1742973041053,-150.0,0.0003872,2]
[356692371,1742973041062,-150.0,0.00038721,2]
[356692374,1742973041071,-150.0,0.00038723,2]
[356692376,1742973041080,-150.0,0.00038724,2]
[356692378,1742973041089,-150.0,0.0003873,2]
[356692380,1742973041098,-150.0,0.00038731,2]
[356692382,1742973041107,-150.0,0.00038734,2]
[356692384,1742973041116,-150.0,0.00038736,2]
[356692386,1742973041126,-150.0,0.00038737,2]
[356692388,1742973041135,-150.0,0.00038737,2]
[356692390,1742973041144,-150.0,0.00038738,2]
[356692392,1742973041153,-150.0,0.0003874,2]
[356692394,1742973041162,-150.0,0.00038742,2]
[356692396,1742973041172,-150.0,0.00038744,2]
[356692398,1742973041181,-150.0,0.00038745,2]
[356692399,1742973041191,-1000.0,0.00038746,2]
[356692400,1742973041201,-150.0,0.0003875,2]
[356692401,1742973041214,-787.09,0.00038752,120]
[356692402,1742973041223,-787.09,0.00038752,120]
[356692403,1742973041233,-787.09,0.00038752,120]
[356692404,1742973041242,-787.09,0.00038752,120]
[356692405,1742973041252,-787.09,0.00038752,120]
[356692406,1742973041262,-787.09,0.00038752,120]
[356692407,1742973041271,-787.09,0.00038752,120]
[356692408,1742973041281,-787.09,0.00038752,120]
[356692409,1742973041291,-787.09,0.00038752,120]
[356692410,1742973041301,-787.09,0.00038752,120]
[356692411,1742973041310,-787.09,0.00038752,120]
[356692412,1742973041319,-787.09,0.00038752,120]
[356692413,1742973041328,-787.09,0.00038752,120]
[356692414,1742973041338,-787.09,0.00038752,120]
[356692415,1742973041347,-787.09,0.00038752,120]
[356692416,1742973041358,-787.09,0.00038752,120]
[356692417,1742973041368,-787.09,0.00038752,120]
[356692418,1742973041378,-787.09,0.00038752,120]
[356692419,1742973041389,-787.09,0.00038752,120]
[356692420,1742973041399,-787.09,0.00038752,120]
[356692421,1742973041409,-787.09,0.00038752,120]
[356692422,1742973041419,-787.09,0.00038752,120]
[356692423,1742973041428,-787.09,0.00038752,120]
[356692424,1742973041436,-787.22536588,0.00038752,120]
[356692425,1742973041448,-150.0,0.00038753,2]
[356692426,1742973041457,-150.0,0.00038754,2]
[356692427,1742973041467,-150.0,0.00038757,2]
[356692428,1742973041476,-150.0,0.00038757,2]
[356692429,1742973041486,-150.0,0.00038757,2]
[356692430,1742973041495,-150.0,0.00038761,2]
[356692431,1742973041505,-150.0,0.00038762,2]
[356692432,1742973041515,-150.0,0.00038763,2]
[356692433,1742973041525,-150.0,0.00038763,2]
[356692434,1742973041535,-150.0,0.00038766,2]
[356692435,1742973041545,-150.0,0.00038766,2]
[356692436,1742973041555,-150.0,0.00038767,2]
[356692437,1742973041564,-150.0,0.00038768,2]
[356692438,1742973041573,-150.0,0.00038769,2]
[356692439,1742973041582,-150.0,0.0003877,2]
[356692440,1742973041689,-150.0,0.00038778,2]
[356692441,1742973041699,-150.0,0.00038779,2]
[356692442,1742973041709,-150.0,0.0003878,2]
[356692443,1742973041719,-150.0,0.0003878,2]
[356692444,1742973041729,-150.0,0.00038782,2]
[356692445,1742973041738,-150.0,0.00038784,2]
[356692446,1742973041747,-200.0,0.00038788,2]
[356692447,1742973041756,-200.0,0.00038788,2]
[356692448,1742973041766,-150.0,0.0003879,2]
[356692449,1742973041776,-150.0,0.00038797,2]
[356692450,1742973041785,-150.0,0.00038799,2]
[356692451,1742973041795,-150.0,0.00038802,2]
[356692452,1742973041804,-1613.0,0.00038803,5]
[356692453,1742973041814,-150.0,0.00038812,2]
[356692454,1742973041823,-150.0,0.00038817,2]
[356692455,1742973041833,-150.0,0.00038818,2]
[356692456,1742973041843,-150.0,0.00038824,2]
[356692457,1742973041852,-150.0,0.00038824,2]
[356692458,1742973041862,-150.0,0.00038825,2]
[356692459,1742973041872,-150.0,0.00038827,2]
[356692460,1742973041881,-150.0,0.00038832,2]
[356692461,1742973041891,-150.0,0.00038832,2]
[356692462,1742973041900,-150.0,0.00038833,2]
[356692463,1742973041909,-150.0,0.00038838,2]
[356692464,1742973041919,-150.0,0.00038838,2]
[356692465,1742973041929,-150.0,0.00038841,2]
[356692466,1742973041938,-150.0,0.00038843,2]
[356692467,1742973041947,-150.0,0.00038846,2]
[356692468,1742973041957,-150.0,0.00038846,2]
[356692469,1742973041966,-150.0,0.00038857,2]
[356692470,1742973041976,-150.0,0.00038858,2]
[356692471,1742973041985,-150.0,0.00038858,2]
[356692472,1742973041995,-150.0,0.00038861,2]
[356692473,1742973042004,-150.0,0.00038866,2]
[356692474,1742973042014,-150.0,0.00038869,2]
[356692475,1742973042023,-150.0,0.00038869,2]
[356692476,1742973042032,-150.0,0.0003887,2]
[356692477,1742973042041,-190.09178846,0.00038878,2]
[356692478,1742973042051,-150.0,0.00038878,2]
[356692479,1742973042060,-150.0,0.0003888,2]
[356692480,1742973042069,-150.0,0.00038881,2]
[356692481,1742973042079,-150.0,0.00038883,2]
[356692482,1742973042089,-150.0,0.00038884,2]
[356692483,1742973042098,-4197.5478,0.00038888,30]
[356692484,1742973042108,-150.0,0.00038888,2]
[356692485,1742973042119,-150.0,0.00038889,2]
[356692486,1742973042128,-21433.2104354,0.00038892,3]